fUSD/lending_fUSD_20250402
["ID","MTS","AMOUNT","RATE_DAILY","PERIOD"]
[357032453,1743601630365,-500.0,0.0004811,2]
[357032454,1743601630387,-1000.0,0.00048588,2]
[357032455,1743601630411,-384.82,0.00048985,2]
[357032456,1743601630434,-500.0,0.00049,120]
[357032457,1743601630456,-2000.0,0.00049112,120]
[357032458,1743601630480,-150.0,0.00049119,7]
[357032459,1743601630503,-250.0,0.00049278,120]
[357032460,1743601630527,-158.36,0.00049344,120]
[357032461,1743601630553,-500.0,0.00049505,120]
[357032462,1743601630576,-156.1,0.00049539,2]
[357032463,1743601630600,-487.8,0.00049553,2]
[357032464,1743601630623,-1064.51485089,0.0004989,2]
[357032465,1743601630646,-840.3267,0.000499,2]
[357032466,1743601630670,-169.63730768,0.000499,15]
[357032467,1743601630691,-9946.121858,0.000499,120]
[357032470,1743601747186,-155.07,0.00026849,2]
[357032471,1743601747208,-155.07,0.00039087,2]
[357032472,1743601747231,-97.83735112,0.00041262,2]
[357032475,1743601774145,-53.16264888,0.00041262,2]
[357032503,1743601831624,-4727.36381906,0.0003459,120]
[357032504,1743601831635,-1532.34330594,0.0003459,120]
[357032505,1743601831645,-1743.0,0.000461,5]
[357032507,1743601831654,-1000.0,0.00046575,120]
[357032509,1743601831663,-150.0,0.00049,2]
[357032511,1743601831673,-1825.9454,0.0004989,2]
[357032513,1743601831683,-45106.1284,0.0004989,2]
[357032515,1743601831692,-69970.59942767,0.000499,120]
[357032517,1743601831704,-609.72664816,0.000499,22]
[357032519,1743601831714,-1763.26888297,0.000499,15]
[357032521,1743601831723,-153.29488079,0.00049973,10]
[357032523,1743601831733,-150.0,0.00049986,2]
[357032525,1743601831742,-185.25,0.00049989,88]
[357032527,1743601831752,-4000.0,0.00049989,120]
[357032529,1743601831761,-3211.42,0.00049989,30]
[357032531,1743601831771,-2496.83409242,0.0004999,4]
[357032533,1743601831782,-548.33541186,0.0004999,4]
[357032535,1743601831793,-2279.0,0.0004999,4]
[357032538,1743601831805,-155053.89904528,0.0004999,4]
[357032547,1743601831937,-610.63319278,0.0004999,4]
[357032585,1743601837397,-898.51862328,0.0004999,4]
[357032586,1743601837459,-76081.16110638,0.0004999,4]
[357032587,1743601837468,-9019.5757246,0.0004999,4]
[357032588,1743601837478,-151.42,0.0004999,120]
[357032589,1743601837488,-151.42,0.0004999,120]
[357032590,1743601837497,-33759.52988296,0.0005,120]
[357032591,1743601837509,-92572.06171081,0.0005,120]
[357032592,1743601837518,-103283.07356428,0.0005,120]
[357032593,1743601837535,-70312.59054597,0.0005,120]
[357032594,1743601837547,-13182.82714125,0.0005,120]
[357032599,1743601839617,-1615.3927794,0.0005,120]
[357032600,1743601839787,-144646.97806811,0.0005,120]
[357032601,1743601839905,-351.46849696,0.0005,120]
[357032602,1743601839966,-947.66428876,0.0005,120]
[357032603,1743601839977,-2673.06996255,0.0005,120]
[357032604,1743601839988,-2141.91213922,0.0005,120]
[357032616,1743601844156,-2658.83459113,0.0005,120]
[357032617,1743601844210,-3178.23465786,0.0005,120]
[357032628,1743601845416,-152.67357684,0.000499,15]
[357032629,1743601845427,-320.06952217,0.0005,120]
[357032632,1743601845588,-428.83862225,0.0005,120]
[357032633,1743601845714,-8564.00127218,0.0005,120]
[357032636,1743601937366,151.0,0.00042276,2]
[357032638,1743602220832,594.0,0.0003,30]
[357032641,1743602403595,-179.8895,0.00027,2]
[357032642,1743602462133,378886.75122328,0.0003,30]
[357032645,1743602791266,389.65,0.00032,120]
[357032646,1743602839252,-70.1105,0.00027,2]
[357032647,1743602839275,-224.05350043,0.00027,2]
[357032648,1743602839297,-150.0,0.000275,2]
[357032649,1743602839319,-300.0,0.00029,2]
[357032650,1743602839343,-500.0,0.00029178,2]
[357032651,1743602839365,-150.0,0.000297,2]
[357032652,1743602839388,-150.0,0.000297,2]
[357032653,1743602839409,-700.0,0.0003,2]
[357032654,1743602839434,-3486.0,0.0003,14]
[357032655,1743602839455,-350.0,0.00031,2]
[357032656,1743602839478,-840.0,0.00031,3]
[357032657,1743602839499,-250.0,0.00036091,2]
[357032658,1743602839520,-405.0,0.00041753,2]
[357032659,1743602839541,-151.0,0.00041823,2]
[357032660,1743602839561,-670.42,0.00046799,120]
[357032661,1743602839582,-439.02,0.00047027,2]
[357032662,1743602839604,-52.44141416,0.00047817,2]
[357032663,1743602845141,-947.55858584,0.00047817,2]
[357032664,1743602845163,-997.80974418,0.0004789,15]
[357032665,1743602946111,-160.33,0.00026849,2]
[357032666,1743602946133,-160.33,0.00042583,2]
[357032667,1743602949109,-271.505146,0.0004765,2]
[357032668,1743602949131,-589.13225052,0.0004789,15]
[357032669,1743602949152,-150.0,0.0004794,2]
[357032670,1743602949173,-150.0,0.00047989,4]
[357032671,1743602949194,-167823.69783845,0.0004799,4]
[357032689,1743603031683,-500.0,0.00047859,120]
[357032690,1743603031693,-20769.50000001,0.0004799,4]
[357032691,1743603031733,-501.36406778,0.0004799,4]
[357032692,1743603031857,-1370.50192946,0.0004799,4]
[357032693,1743603031886,-370.76858744,0.0004799,4]
[357032694,1743603032036,-940.11993096,0.0004799,4]
[357032727,1743603037596,-1782.5826,0.0004799,4]
[357032728,1743603037623,-8523.02514144,0.0004799,4]
[357032735,1743603040025,-808.50393756,0.0004799,4]
[357032736,1743603040037,-719.1,0.0004799,4]
[357032737,1743603040048,-10674.31048274,0.0004799,4]
[357032738,1743603040134,-321.73750622,0.0004799,4]
[357032739,1743603040175,-947.66428876,0.0004799,4]
[357032745,1743603045377,-117.47242218,0.0004799,4]
[357032746,1743603045389,-2319.31947224,0.0004799,4]
[357032747,1743603045399,-489.0,0.0004799,2]
[357032748,1743603045415,-151.41,0.0004799,2]
[357032749,1743603045427,-253.98059422,0.00047999,120]
[357032750,1743603045436,-5243.11751136,0.00048,2]
[357032751,1743603045447,-740.20910657,0.00048,2]
[357032753,1743603045704,-534.22322148,0.00048,2]
[357032754,1743603045802,-344.28961463,0.00048,2]
[357032755,1743603045814,-22624.63263434,0.00048,2]
[357032756,1743603045825,-68824.8162655,0.00048,2]
[357032757,1743603045912,-15806.31018226,0.00048,2]
[357032758,1743603046033,-17122.2,0.00048,2]
[357032759,1743603046045,-8560.0,0.00048,2]
[357032813,1743603083155,-224.38854597,0.0004789,2]
[357032816,1743603139481,151.0,0.00040768,2]
[357032831,1743603909334,-150.0,0.00015,2]
[357032832,1743603936775,444.88411712,8e-05,2]
[357032833,1743603955274,903.61705876,6.94e-05,2]
[357032834,1743603985681,-216.77930722,0.00015,2]
[357032835,1743604008626,-150.0,0.00015,2]
[357032836,1743604015257,-1385103.93576044,0.00015,2]
[357032837,1743604043739,-152.91151117,0.0002,5]
[357032838,1743604044148,-250.0,0.0001982,2]
[357032839,1743604044169,-1251.30010113,0.0002,5]
[357032840,1743604044191,-441.28994639,0.000239,2]
[357032841,1743604044212,-1936.2777888,0.00024,5]
[357032842,1743604044236,-606.79391057,0.00026749,2]
[357032843,1743604048112,-821.45388466,0.00026749,2]
[357032844,1743604048135,-150.96,0.00026849,2]
[357032845,1743604048156,-250.0,0.00027,2]
[357032846,1743604048177,-300.0,0.00029,2]
[357032847,1743604048199,-1428.24779519,0.00029332,2]
[357032848,1743604048227,-350.0,0.00031,2]
[357032849,1743604048250,-1428.24779519,0.00031916,2]
[357032850,1743604048273,-1002.03144334,0.00034499,2]
[357032851,1743604080919,-184.39,0.0002,4]
[357032859,1743604149108,-554.51876269,0.0002,4]
[357032860,1743604149131,-426.21635185,0.00034499,2]
[357032861,1743604149153,-400.0,0.00034593,2]
[357032862,1743604149177,-1428.24779519,0.00037083,2]
[357032863,1743604149199,-237.0,0.00037107,2]
[357032864,1743604149368,-167.42,0.00037699,2]
[357032865,1743604149397,-1428.24779519,0.00039666,2]
[357032866,1743604149420,-1575.6964387,0.0004,3]
[357032867,1743604149444,-702.32690114,0.0004,30]
[357032868,1743604149469,-1428.24779519,0.0004225,15]
[357032869,1743604149494,-1428.24779519,0.00044833,15]
[357032870,1743604149518,-383.0,0.00045,120]
[357032871,1743604149541,-151.0,0.00045,120]
[357032872,1743604149563,-151.0,0.00045,120]
[357032873,1743604155124,-518.08,0.00046157,2]
[357032874,1743604155146,-167.946,0.00046157,76]
[357032882,1743604206590,-30585.92128901,0.00034591,30]
[357032883,1743604217081,-2000.0,0.00047016,120]
[357032884,1743604217109,-666.51,0.00047325,120]
[357032885,1743604217134,-250.0,0.00047505,120]
[357032886,1743604217159,-278.17648,0.0004751,82]
[357032887,1743604217183,-201.0,0.00047973,120]
[357032888,1743604217213,-182.81636578,0.00047989,120]
[357032889,1743604217239,-500.0,0.00047999,120]
[357032890,1743604217265,-158.36,0.00048134,120]
[357032891,1743604217291,-156.07,0.0004844,120]
[357032892,1743604217317,-1773.24243306,0.0004879,120]
[357032893,1743604217347,-3800.25830282,0.000488,120]
[357032894,1743604217374,-2702.67845155,0.000488,120]
[357032895,1743604217403,-500.0,0.00049315,120]
[357032896,1743604217431,-226.63761041,0.00049315,120]
[357032897,1743604217461,-500.0,0.00049315,120]
[357032898,1743604217499,-500.0,0.00049315,120]
[357032899,1743604217529,-500.0,0.00049315,120]
[357032900,1743604217558,-492.21921012,0.00049315,120]
[357032901,1743604217589,-500.0,0.00049315,120]
[357032902,1743604217617,-291.45630991,0.00049315,120]
[357032903,1743604217644,-500.0,0.00049369,120]
[357032904,1743604217669,-163.12951871,0.000495,36]
[357032905,1743604217700,-152.79,0.000496,45]
[357032906,1743604217728,-462.11552149,0.00049863,120]
[357032907,1743604217755,-500.0,0.00049863,120]
[357032908,1743604217783,-17643.04071703,0.000499,120]
[357032909,1743604217808,-3229.00000001,0.00049989,120]
[357032910,1743604217836,-151.41,0.0004999,120]
[357032911,1743604217867,-151.41,0.0004999,120]
[357032912,1743604217893,-151.41,0.0004999,120]
[357032913,1743604217918,-151.41,0.0004999,120]
[357032914,1743604217943,-539.0,0.0004999,30]
[357032915,1743604217969,-3492.56086796,0.0005,60]
[357032916,1743604217996,-45695.04434791,0.0005,120]
[357032917,1743604218021,-150000.0,0.0005,120]
[357032918,1743604218047,-185.0,0.0005,120]
[357032919,1743604218072,-204.69547925,0.0005,30]
[357032920,1743604218101,-500000.0,0.0005,120]
[357032921,1743604218127,-2000.0,0.0005,120]
[357032922,1743604218153,-48170.19,0.0005,120]
[357032923,1743604218178,-2038.0,0.0005,120]
[357032924,1743604218205,-1000000.0,0.0005,120]
[357032925,1743604218232,-170000.0,0.0005,120]
[357032926,1743604218259,-38240.36838399,0.0005,120]
[357032927,1743604219098,151.0,0.00045,120]
[357032928,1743604221916,-151.41,0.0004999,120]
[357032929,1743604221943,-215181.61161601,0.0005,120]
[357032930,1743604221967,-151.0,0.0005,120]
[357032931,1743604221991,-151.0,0.0005,120]
[357032932,1743604222015,-198.771119,0.0005,120]
[357032933,1743604222040,-151.0,0.0005,120]
[357032934,1743604222066,-151.0,0.0005,120]
[357032935,1743604222092,-151.0,0.0005,120]
[357032936,1743604222117,-151.0,0.0005,120]
[357032937,1743604222141,-151.0,0.0005,120]
[357032938,1743604222166,-151.0,0.0005,120]
[357032939,1743604222190,-151.51909124,0.0005,120]
[357032940,1743604222215,-151.0,0.0005,120]
[357032941,1743604222239,-245.69459472,0.0005,120]
[357032942,1743604222265,-151.0,0.0005,120]
[357032943,1743604222290,-151.0,0.0005,120]
[357032944,1743604222315,-151.0,0.0005,120]
[357032945,1743604222342,-151.0,0.0005,120]
[357032946,1743604222511,-151.0,0.0005,120]
[357032947,1743604222543,-262.031208,0.0005,120]
[357032948,1743604222568,-844.093684,0.0005,120]
[357032949,1743604222594,-844.093684,0.0005,120]
[357032950,1743604222618,-844.093684,0.0005,120]
[357032951,1743604222643,-844.093684,0.0005,120]
[357032952,1743604222669,-844.093684,0.0005,120]
[357032953,1743604222695,-844.093684,0.0005,120]
[357032954,1743604222721,-278.17649,0.0005001,88]
[357032955,1743604222746,-151.41,0.0005009,120]
[357032956,1743604222774,-151.41,0.0005009,120]
[357032957,1743604222801,-1000000.0,0.000501,120]
[357032958,1743604222827,-151.0,0.000501,120]
[357032959,1743604222853,-151.0,0.000501,120]
[357032960,1743604222877,-844.093684,0.000501,120]
[357032961,1743604222901,-844.093684,0.000501,120]
[357032962,1743604222926,-151.41,0.0005019,120]
[357032963,1743604222951,-151.41,0.0005019,120]
[357032964,1743604222979,-773756.39640903,0.000502,120]
[357032965,1743604225853,-226243.60359097,0.000502,120]
[357032966,1743604225878,-151.0,0.000502,120]
[357032967,1743604225903,-844.093684,0.000502,120]
[357032968,1743604225927,-844.093684,0.000502,120]
[357032969,1743604225952,-151.41,0.0005024,120]
[357032970,1743604225978,-13428.98102915,0.0005024,30]
[357032971,1743604226006,-190928.69,0.0005025,120]
[357032972,1743604226032,-100830.72,0.0005025,120]
[357032973,1743604226058,-151.0,0.0005025,120]
[357032974,1743604226083,-844.093684,0.0005025,120]
[357032975,1743604226111,-844.093684,0.0005025,120]
[357032976,1743604226136,-365.91728797,0.0005025,30]
[357032977,1743604226162,-151.41,0.0005029,120]
[357032978,1743604226188,-151.41,0.0005029,120]
[357032979,1743604226214,-1000000.0,0.000503,120]
[357032980,1743604226239,-151.0,0.000503,120]
[357032981,1743604226264,-844.093684,0.000503,120]
[357032982,1743604226288,-844.093684,0.000503,120]
[357032983,1743604226313,-151.41,0.0005039,120]
[357032984,1743604226339,-151.41,0.0005039,120]
[357032985,1743604226368,-461927.47598791,0.000504,120]
[357033014,1743604232421,-23900.0,0.00046709,2]
[357033015,1743604232431,-1803.03612071,0.00046916,2]
[357033016,1743604232441,-1000.0,0.00047187,2]
[357033017,1743604232451,-1254.75,0.00047234,2]
[357033018,1743604232461,-200.0,0.00047277,2]
[357033019,1743604232471,-1803.03612071,0.00047403,2]
[357033020,1743604232480,-1428.24779519,0.00047417,15]
[357033021,1743604232490,-150.0,0.00047505,7]
[357033022,1743604232500,-1803.03612071,0.0004789,2]
[357033023,1743604232510,-2425.3232,0.000479,2]
[357033024,1743604232520,-39333.6526,0.000479,2]
[357033025,1743604232529,-1951.8883,0.000479,2]
[357033026,1743604232538,-151.0,0.00047971,2]
[357033027,1743604232548,-415.9133171,0.00047973,10]
[357033028,1743604232558,-180290.756822,0.0004799,4]
[357033029,1743604232568,-966.38311348,0.0004799,4]
[357033030,1743604232578,-151.41,0.0004799,2]
[357033031,1743604232587,-253541.92214332,0.00048,2]
[357033032,1743604232601,-1248.674,0.00048,2]
[357033033,1743604232621,-26505.284976,0.00048,2]
[357033034,1743604232642,-773.44489308,0.00048,2]
[357033035,1743604232654,-1774.83220904,0.00048,2]
[357033036,1743604234035,-292.811971,0.0005,120]
[357033037,1743604234064,-538072.52401209,0.000504,120]
[357033038,1743604234091,-151.0,0.000504,120]
[357033039,1743604234117,-844.093684,0.000504,120]
[357033040,1743604234143,-844.093684,0.000504,120]
[357033041,1743604234168,-12480.00750002,0.0005048,120]
[357033042,1743604234194,-151.41,0.0005049,120]
[357033043,1743604234220,-151.41,0.0005049,120]
[357033044,1743604234247,-210000.0,0.000505,120]
[357033045,1743604234274,-500000.0,0.000505,120]
[357033046,1743604234301,-103029.63,0.000505,120]
[357033047,1743604234327,-151.0,0.000505,120]
[357033048,1743604234355,-151.0,0.000505,120]
[357033049,1743604234380,-844.093684,0.000505,120]
[357033050,1743604234406,-844.093684,0.000505,120]
[357033051,1743604234431,-844.093684,0.000505,120]
[357033052,1743604234456,-844.093691,0.000505,120]
[357033053,1743604234482,-500.0,0.00050739,120]
[357033054,1743604234507,-152.48074373,0.00050822,30]
[357033055,1743604234533,-163.12951867,0.0005085,42]
[357033056,1743604234558,-276.5,0.000509,120]
[357033057,1743604234585,-151.41,0.0005099,120]
[357033058,1743604234611,-151.41,0.0005099,120]
[357033059,1743604234636,-151.41,0.0005099,120]
[357033060,1743604234660,-151.41,0.0005099,120]
[357033061,1743604234687,-628606.89414349,0.00051,120]
[357033065,1743604237911,-6331.483508,0.00048,2]
[357033066,1743604238022,-424.02185707,0.00048,2]
[357033084,1743604238408,-498.40734413,0.00048,2]
[357033085,1743604238447,-74140.79398716,0.00051,120]
[357033086,1743604238472,-10000.0,0.00051,120]
[357033087,1743604238498,-249963.17,0.00051,120]
[357033088,1743604238524,-978000.0,0.00051,120]
[357033089,1743604238549,-283.26,0.00051,120]
[357033090,1743604238574,-714.0,0.000511,30]
[357033091,1743604238601,-189.99793258,0.00051724,30]
[357033092,1743604238630,-152.79,0.000519,51]
[357033093,1743604238659,-152.79,0.000519,51]
[357033094,1743604238684,-469.37294336,0.00051985,120]
[357033095,1743604238710,-140000.0,0.00052,120]
[357033096,1743604238737,-89000.0,0.00052,120]
[357033097,1743604238773,-288.14244927,0.00052,120]
[357033098,1743604238800,-456645.68268763,0.00052,120]
[357033103,1743604240100,-21412.7399676,0.00048,2]
[357033104,1743604240137,-500.0,0.00048,2]
[357033106,1743604240533,-0.00768832,0.00048,2]
[357033141,1743604244415,-3801.10753195,0.00048,2]
[357033155,1743604246366,-20840.46229162,0.00048,2]
[357033156,1743604246468,-468.29066837,0.00048,2]
[357033157,1743604246489,-18473.42270748,0.00048,2]
[357033158,1743604246500,-4975.0,0.00048,2]
[357033159,1743604248417,-221.35769001,0.00049315,120]
[357033160,1743604248454,-543354.31731237,0.00052,120]
[357033161,1743604248479,-1000.0,0.00052055,120]
[357033162,1743604248504,-500.0,0.00052109,120]
[357033163,1743604248529,-163.12951867,0.000522,47]
[357033164,1743604248555,-278.17649,0.0005251,93]
[357033165,1743604248579,-717.221,0.00052561,120]
[357033166,1743604248603,-894.161,0.00052561,120]
[357033167,1743604248627,-3950.0,0.00052561,120]
[357033168,1743604248651,-498.411,0.00052561,120]
[357033169,1743604248676,-151.0,0.00052603,120]
[357033170,1743604248700,-500.0,0.000529,120]
[357033171,1743604248725,-500.0,0.000529,120]
[357033172,1743604248749,-302.77,0.000529,120]
[357033173,1743604248776,-500.0,0.000529,120]
[357033174,1743604248801,-500.0,0.000529,120]
[357033175,1743604248826,-500.0,0.000529,120]
[357033176,1743604248853,-500.0,0.000529,120]
[357033177,1743604248879,-500.0,0.000529,120]
[357033178,1743604248908,-500.0,0.000529,120]
[357033179,1743604248931,-500.0,0.000529,120]
[357033180,1743604248957,-192.41,0.000529,120]
[357033181,1743604248982,-500.0,0.000529,120]
[357033182,1743604249008,-411804.06,0.00053,120]
[357033183,1743604249033,-1000000.0,0.00053,120]
[357033184,1743604249058,-1000.0,0.00053,120]
[357033185,1743604249082,-159.54,0.00053,120]
[357033186,1743604249110,-500.0,0.00053,60]
[357033187,1743604249136,-500.0,0.00053,60]
[357033188,1743604249161,-250.0,0.00053,120]
[357033189,1743604249186,-250.0,0.00053,120]
[357033190,1743604249210,-250.0,0.00053,120]
[357033191,1743604249235,-250.0,0.00053,120]
[357033192,1743604249260,-250.0,0.00053,120]
[357033193,1743604249285,-250.0,0.00053,120]
[357033194,1743604249310,-250.0,0.00053,120]
[357033195,1743604249335,-257.4,0.00053,120]
[357033196,1743604249360,-500.0,0.00053027,60]
[357033197,1743604249384,-500.0,0.00053027,60]
[357033198,1743604249408,-500.0,0.00053055,60]
[357033199,1743604249432,-500.0,0.00053055,60]
[357033200,1743604249456,-500.0,0.00053082,60]
[357033201,1743604249480,-708.30435304,0.00053082,60]
[357033202,1743604249504,-1000.0,0.00053086,120]
[357033203,1743604249529,-500.0,0.0005311,60]
[357033204,1743604249553,-500.0,0.00053137,60]
[357033205,1743604249578,-500.0,0.00053164,60]
[357033206,1743604249603,-500.0,0.00053192,60]
[357033207,1743604249730,-500.0,0.00053219,60]
[357033208,1743604249759,-500.0,0.00053247,60]
[357033209,1743604249787,-500.0,0.00053274,60]
[357033210,1743604249813,-500.0,0.00053301,60]
[357033211,1743604249837,-500.0,0.00053329,60]
[357033212,1743604249868,-500.0,0.00053356,60]
[357033213,1743604249893,-500.0,0.00053384,60]
[357033214,1743604249918,-500.0,0.00053411,60]
[357033215,1743604249946,-500.0,0.00053438,60]
[357033216,1743604249973,-500.0,0.00053466,60]
[357033217,1743604250000,-929.23666085,0.00053493,60]
[357033218,1743604250025,-3000.0,0.000535,120]
[357033219,1743604250053,-163.12951867,0.0005355,53]
[357033220,1743604250080,-11505.37545639,0.000539,120]
[357033221,1743604257698,-499999.0,0.000488,120]
[357033222,1743604257725,-161.482077,0.0005,120]
[357033223,1743604257758,-106069.0,0.00052,120]
[357033224,1743604257787,-19146.62454361,0.000539,120]
[357033225,1743604257811,-3417.0074777,0.0005398,120]
[357033226,1743604257838,-422043.01302028,0.00054,120]
[357033227,1743604257867,-863055.7611,0.00054,120]
[357033228,1743604257891,-9200.0,0.00054,120]
[357033229,1743604257915,-500.0,0.00054055,120]
[357033230,1743604257939,-500.0,0.00054055,120]
[357033231,1743604257963,-500.0,0.00054055,120]
[357033232,1743604257987,-500.0,0.00054055,120]
[357033233,1743604258011,-500.0,0.00054055,120]
[357033234,1743604258035,-500.0,0.00054055,120]
[357033235,1743604258060,-500.0,0.00054055,120]
[357033236,1743604258085,-500.0,0.00054055,120]
[357033237,1743604258111,-500.0,0.00054055,120]
[357033238,1743604258136,-500.0,0.00054055,120]
[357033239,1743604258162,-500.0,0.00054055,120]
[357033240,1743604258187,-500.0,0.00054055,120]
[357033241,1743604258213,-500.0,0.00054055,120]
[357033242,1743604258238,-500.0,0.00054055,120]
[357033243,1743604258264,-500.0,0.00054055,120]
[357033244,1743604258289,-500.0,0.00054055,120]
[357033245,1743604258315,-500.0,0.00054055,120]
[357033246,1743604258340,-500.0,0.00054055,120]
[357033247,1743604258366,-500.0,0.00054055,120]
[357033248,1743604258391,-500.0,0.00054055,120]
[357033249,1743604258417,-500.0,0.00054055,120]
[357033250,1743604258441,-500.0,0.00054055,120]
[357033251,1743604258467,-500.0,0.00054055,120]
[357033252,1743604258491,-712.0,0.00054055,120]
[357033253,1743604258516,-884.0,0.00054055,120]
[357033254,1743604258541,-985.0,0.00054055,120]
[357033255,1743604258570,-152.79,0.000542,54]
[357033256,1743604258599,-152.79,0.000542,54]
[357033257,1743604258625,-50000.0,0.0005479,120]
[357033258,1743604258650,-500.0,0.00054794,120]
[357033259,1743604258676,-1664.679534,0.00054794,120]
[357033260,1743604258702,-178.829441,0.00054794,120]
[357033261,1743604258727,-500.0,0.00054794,120]
[357033262,1743604258753,-500.0,0.00054794,120]
[357033263,1743604258779,-503.19909455,0.00054794,120]
[357033264,1743604258807,-503.30545059,0.00054794,120]
[357033265,1743604258833,-503.44768184,0.00054794,120]
[357033266,1743604258860,-515.92958915,0.00054794,120]
[357033267,1743604258885,-525.19912646,0.00054794,120]
[357033268,1743604258910,-500.0,0.00054794,120]
[357033269,1743604258935,-500.0,0.00054794,120]
[357033270,1743604258960,-500.0,0.00054794,120]
[357033271,1743604258984,-500.0,0.00054794,120]
[357033272,1743604259008,-2835.59352,0.00054794,120]
[357033273,1743604259032,-498.85658177,0.00054794,30]
[357033274,1743604259056,-500.0,0.00054794,120]
[357033275,1743604259204,-500.0,0.00054794,120]
[357033276,1743604259232,-292.49176205,0.00054794,120]
[357033277,1743604268036,-208.48334097,0.00054794,120]
[357033278,1743604268061,-515.51587182,0.00054794,120]
[357033279,1743604268086,-518.33210585,0.00054794,120]
[357033280,1743604268112,-511.14331689,0.00054794,120]
[357033281,1743604268140,-500.0,0.00054794,120]
[357033282,1743604268166,-500.0,0.00054794,120]
[357033283,1743604268192,-394.78774279,0.00054794,120]
[357033284,1743604268217,-500.0,0.00054794,120]
[357033285,1743604268243,-500.0,0.00054794,120]
[357033286,1743604268267,-499.70269963,0.00054794,120]
[357033287,1743604268292,-500.0,0.00054794,120]
[357033288,1743604268318,-500.0,0.00054794,120]
[357033289,1743604268343,-500.0,0.00054794,120]
[357033290,1743604268369,-500.0,0.00054794,120]
[357033291,1743604268396,-500.0,0.00054794,120]
[357033292,1743604268421,-605.89363614,0.00054794,120]
[357033293,1743604268445,-500.0,0.00054794,120]
[357033294,1743604268474,-523.5174004,0.00054794,120]
[357033295,1743604268499,-496.15421678,0.00054794,120]
[357033296,1743604268523,-631.28518662,0.00054794,120]
[357033297,1743604268548,-500.0,0.00054794,120]
[357033298,1743604268573,-500.0,0.00054794,120]
[357033299,1743604268598,-500.0,0.00054794,120]
[357033300,1743604268622,-500.0,0.00054794,120]
[357033301,1743604268647,-341.76102589,0.00054794,120]
[357033302,1743604268674,-500.0,0.00054794,120]
[357033303,1743604268700,-500.0,0.00054794,120]
[357033304,1743604268727,-500.0,0.00054794,120]
[357033305,1743604268752,-500.0,0.00054794,120]
[357033306,1743604268776,-500.0,0.00054794,120]
[357033307,1743604268802,-500.0,0.00054794,120]
[357033308,1743604268826,-500.0,0.00054794,120]
[357033309,1743604268853,-500.0,0.00054794,120]
[357033310,1743604268882,-508.79146467,0.00054794,120]
[357033311,1743604268907,-500.0,0.00054794,120]
[357033312,1743604268931,-508.22070607,0.00054794,120]
[357033313,1743604268956,-500.0,0.00054794,120]
[357033314,1743604268981,-549.61041174,0.00054794,120]
[357033315,1743604269005,-500.0,0.00054794,120]
[357033316,1743604269030,-500.0,0.00054794,120]
[357033317,1743604269055,-500.0,0.00054794,120]
[357033318,1743604269080,-524.35228492,0.00054794,120]
[357033319,1743604269104,-500.0,0.00054794,120]
[357033320,1743604269129,-512.55523384,0.00054794,120]
[357033321,1743604269154,-500.0,0.00054794,120]
[357033322,1743604269178,-500.0,0.00054794,120]
[357033323,1743604269204,-500.0,0.00054794,120]